[Event "*** SCC Grand Prix: Titled Tuesday Blitz"]
[Site "Chess.com"]
[Date "2020.09.08"]
[Round "6"]
[White "Hypercar"]
[Black "uthoang"]
[Result "1/2-1/2"]
[WhiteElo "2410"]
[BlackElo "2270"]
[TimeControl "180+1"]
[EndTime "11:10:22 PDT"]
[Termination "Game drawn by 50-move rule"]

1. d4 {[%clk 0:03:00.4]} 1... Nf6 {[%clk 0:02:58.4]} 2. Nf3 {[%clk 0:03:00.6]}
2... e6 {[%clk 0:02:58.5]} 3. g3 {[%clk 0:03:01.3]} 3... b6 {[%clk 0:02:58.1]}
4. Bg2 {[%clk 0:03:01.9]} 4... Bb7 {[%clk 0:02:58.7]} 5. O-O {[%clk 0:03:02.2]}
5... Be7 {[%clk 0:02:59.1]} 6. c3 {[%clk 0:03:02.7]} 6... O-O {[%clk 0:02:59.1]}
7. Bf4 {[%clk 0:03:03.4]} 7... c5 {[%clk 0:02:54.8]} 8. Nbd2 {[%clk 0:03:03.3]}
8... Nc6 {[%clk 0:02:53.8]} 9. Ne5 {[%clk 0:03:02]} 9... Rc8 {[%clk 0:02:49.2]}
10. Qa4 {[%clk 0:03:00]} 10... a5 {[%clk 0:02:39.1]} 11. Rfd1 {[%clk 0:02:55.4]}
11... d5 {[%clk 0:02:38.8]} 12. e4 {[%clk 0:02:52.8]} 12... Nxe5 {[%clk
0:02:34.6]} 13. dxe5 {[%clk 0:02:49.2]} 13... Bc6 {[%clk 0:02:26.3]} 14. Qb3
{[%clk 0:02:39.3]} 14... c4 {[%clk 0:02:24.7]} 15. Qc2 {[%clk 0:02:38.8]} 15...
Nh5 {[%clk 0:02:22.3]} 16. exd5 {[%clk 0:02:33]} 16... exd5 {[%clk 0:02:21.1]}
17. Nxc4 {[%clk 0:02:32.1]} 17... Nxf4 {[%clk 0:02:18.2]} 18. gxf4 {[%clk
0:02:33]} 18... Bc5 {[%clk 0:02:10.1]} 19. Ne3 {[%clk 0:02:30.7]} 19... Qh4
{[%clk 0:02:09]} 20. Qf5 {[%clk 0:02:23]} 20... Rcd8 {[%clk 0:01:59.8]} 21. Qg4
{[%clk 0:02:14.9]} 21... Qxg4 {[%clk 0:01:48.3]} 22. Nxg4 {[%clk 0:02:13.8]}
22... h5 {[%clk 0:01:36.5]} 23. Ne3 {[%clk 0:02:11.5]} 23... Bb5 {[%clk
0:01:27.8]} 24. Nxd5 {[%clk 0:02:09.6]} 24... Kh7 {[%clk 0:01:21.2]} 25. b4
{[%clk 0:02:04.8]} 25... axb4 {[%clk 0:01:16.3]} 26. cxb4 {[%clk 0:02:05.7]}
26... Ba4 {[%clk 0:01:05.2]} 27. bxc5 {[%clk 0:02:05]} 27... Bxd1 {[%clk
0:01:05.4]} 28. Rxd1 {[%clk 0:02:04.2]} 28... bxc5 {[%clk 0:01:05.9]} 29. Be4+
{[%clk 0:02:00.2]} 29... g6 {[%clk 0:01:05.8]} 30. Bc2 {[%clk 0:01:56.7]} 30...
Kg7 {[%clk 0:01:03.4]} 31. Bb3 {[%clk 0:01:56.2]} 31... Rc8 {[%clk 0:01:00.9]}
32. Rc1 {[%clk 0:01:56.4]} 32... Rfd8 {[%clk 0:00:57]} 33. Kg2 {[%clk
0:01:56.8]} 33... c4 {[%clk 0:00:53.6]} 34. Rxc4 {[%clk 0:01:56.5]} 34... Rxc4
{[%clk 0:00:45.6]} 35. Bxc4 {[%clk 0:01:57.4]} 35... Rc8 {[%clk 0:00:45.1]} 36.
Bb3 {[%clk 0:01:56.4]} 36... Rc1 {[%clk 0:00:44]} 37. Ne3 {[%clk 0:01:53.4]}
37... Rc3 {[%clk 0:00:41.7]} 38. e6 {[%clk 0:01:53.2]} 38... fxe6 {[%clk
0:00:41.1]} 39. Bxe6 {[%clk 0:01:54.1]} 39... Ra3 {[%clk 0:00:40.8]} 40. Bb3
{[%clk 0:01:51.7]} 40... Ra5 {[%clk 0:00:41.2]} 41. Kf3 {[%clk 0:01:50.1]} 41...
Kf6 {[%clk 0:00:41.4]} 42. Nd5+ {[%clk 0:01:49.1]} 42... Kf5 {[%clk 0:00:35.8]}
43. Ne3+ {[%clk 0:01:49.5]} 43... Kf6 {[%clk 0:00:35.9]} 44. a4 {[%clk
0:01:48.8]} 44... g5 {[%clk 0:00:34.1]} 45. fxg5+ {[%clk 0:01:48.6]} 45... Kxg5
{[%clk 0:00:34.5]} 46. Nc4 {[%clk 0:01:48.6]} 46... Rf5+ {[%clk 0:00:32.6]} 47.
Kg2 {[%clk 0:01:48]} 47... h4 {[%clk 0:00:30]} 48. a5 {[%clk 0:01:47.5]} 48...
Rf6 {[%clk 0:00:28.3]} 49. h3 {[%clk 0:01:45.6]} 49... Kf4 {[%clk 0:00:27.3]}
50. Nb6 {[%clk 0:01:39.1]} 50... Rg6+ {[%clk 0:00:27.1]} 51. Kf1 {[%clk
0:01:36.4]} 51... Kf3 {[%clk 0:00:26.6]} 52. Bd5+ {[%clk 0:01:35.4]} 52... Kf4
{[%clk 0:00:26.2]} 53. Bb7 {[%clk 0:01:35.1]} 53... Rd6 {[%clk 0:00:22.6]} 54.
Ke2 {[%clk 0:01:32.6]} 54... Re6+ {[%clk 0:00:20]} 55. Kd3 {[%clk 0:01:32.8]}
55... Re1 {[%clk 0:00:20]} 56. a6 {[%clk 0:01:32.3]} 56... Ra1 {[%clk
0:00:20.2]} 57. Nc4 {[%clk 0:01:30.5]} 57... Ra2 {[%clk 0:00:18.1]} 58. Nd6
{[%clk 0:01:29.3]} 58... Rxf2 {[%clk 0:00:17.6]} 59. a7 {[%clk 0:01:29.4]} 59...
Ra2 {[%clk 0:00:18]} 60. a8=Q {[%clk 0:01:27]} 60... Rxa8 {[%clk 0:00:18.2]} 61.
Bxa8 {[%clk 0:01:27.9]} 61... Kg3 {[%clk 0:00:19.1]} 62. Ke2 {[%clk 0:01:18]}
62... Kxh3 {[%clk 0:00:20]} 63. Kf1 {[%clk 0:01:18.1]} 63... Kg3 {[%clk
0:00:19.9]} 64. Kg1 {[%clk 0:01:17.6]} 64... h3 {[%clk 0:00:19.6]} 65. Kh1
{[%clk 0:01:17.8]} 65... h2 {[%clk 0:00:20.1]} 66. Bg2 {[%clk 0:01:16.9]} 66...
Kf2 {[%clk 0:00:19.9]} 67. Kxh2 {[%clk 0:01:17.8]} 67... Ke3 {[%clk 0:00:20.7]}
68. Kg3 {[%clk 0:01:17.7]} 68... Kd4 {[%clk 0:00:20.1]} 69. Kf4 {[%clk
0:01:17.9]} 69... Kd3 {[%clk 0:00:20.4]} 70. Bf3 {[%clk 0:01:15.7]} 70... Kc3
{[%clk 0:00:20.6]} 71. Ke4 {[%clk 0:01:15.2]} 71... Kb4 {[%clk 0:00:20.7]} 72.
Kd4 {[%clk 0:01:14.6]} 72... Kb3 {[%clk 0:00:19.5]} 73. Ne4 {[%clk 0:01:14.4]}
73... Kc2 {[%clk 0:00:19.6]} 74. Be2 {[%clk 0:01:13.7]} 74... Kc1 {[%clk
0:00:19]} 75. Bc4 {[%clk 0:01:10.8]} 75... Kd1 {[%clk 0:00:18.9]} 76. Nc5 {[%clk
0:01:10.4]} 76... Kc2 {[%clk 0:00:18.3]} 77. Na4 {[%clk 0:01:08.5]} 77... Kd2
{[%clk 0:00:17.6]} 78. Bb3 {[%clk 0:01:07]} 78... Ke2 {[%clk 0:00:17.6]} 79. Nc5
{[%clk 0:01:05.2]} 79... Kf3 {[%clk 0:00:17.7]} 80. Bd1+ {[%clk 0:01:01.8]}
80... Kf4 {[%clk 0:00:17.6]} 81. Ne6+ {[%clk 0:00:59.5]} 81... Kf5 {[%clk
0:00:17.8]} 82. Kd5 {[%clk 0:00:59.5]} 82... Kf6 {[%clk 0:00:16.4]} 83. Nd4
{[%clk 0:00:58.6]} 83... Ke7 {[%clk 0:00:16.2]} 84. Ke5 {[%clk 0:00:56.9]} 84...
Kd7 {[%clk 0:00:16.6]} 85. Bb3 {[%clk 0:00:46.2]} 85... Kc7 {[%clk 0:00:17.5]}
86. Nf5 {[%clk 0:00:25]} 86... Kb6 {[%clk 0:00:17.5]} 87. Ne3 {[%clk 0:00:24.9]}
87... Kb5 {[%clk 0:00:17.6]} 88. Nd5 {[%clk 0:00:25.2]} 88... Kc5 {[%clk
0:00:17.7]} 89. Bd1 {[%clk 0:00:23.6]} 89... Kc4 {[%clk 0:00:17.7]} 90. Ke4
{[%clk 0:00:17.8]} 90... Kc5 {[%clk 0:00:18.1]} 91. Ne3 {[%clk 0:00:17.7]} 91...
Kb4 {[%clk 0:00:17.4]} 92. Kd4 {[%clk 0:00:17.5]} 92... Kb5 {[%clk 0:00:18.3]}
93. Nc2 {[%clk 0:00:11.2]} 93... Kc6 {[%clk 0:00:19.2]} 94. Bf3+ {[%clk
0:00:10.6]} 94... Kd6 {[%clk 0:00:20.1]} 95. Bd5 {[%clk 0:00:10.7]} 95... Ke7
{[%clk 0:00:20.1]} 96. Ke5 {[%clk 0:00:10]} 96... Kd7 {[%clk 0:00:20.3]} 97. Nd4
{[%clk 0:00:10.3]} 97... Kc7 {[%clk 0:00:20.7]} 98. Nb5+ {[%clk 0:00:10.1]}
98... Kb6 {[%clk 0:00:21]} 99. Nc3 {[%clk 0:00:11]} 99... Kc5 {[%clk 0:00:21.6]}
100. Ke4 {[%clk 0:00:11.1]} 100... Kb4 {[%clk 0:00:22]} 101. Kd4 {[%clk
0:00:11.3]} 101... Ka5 {[%clk 0:00:20]} 102. Bc4 {[%clk 0:00:11.6]} 102... Kb6
{[%clk 0:00:20.3]} 103. Nd5+ {[%clk 0:00:11.5]} 103... Kc6 {[%clk 0:00:20.4]}
104. Bd3 {[%clk 0:00:05.6]} 104... Kd6 {[%clk 0:00:20.7]} 105. Bb5 {[%clk
0:00:04.4]} 105... Ke6 {[%clk 0:00:20]} 106. Ke4 {[%clk 0:00:04.8]} 106... Kd6
{[%clk 0:00:20.4]} 107. Ba4 {[%clk 0:00:04.1]} 107... Kc5 {[%clk 0:00:20.7]}
108. Ke5 {[%clk 0:00:03.9]} 108... Kc4 {[%clk 0:00:20.6]} 109. Bd7 {[%clk
0:00:03.9]} 109... Kc5 {[%clk 0:00:21.5]} 110. Be6 {[%clk 0:00:03.7]} 110... Kc4
{[%clk 0:00:21.4]} 111. Nf4+ {[%clk 0:00:03.8]} 111... Kc5 {[%clk 0:00:22.3]}
112. Ne2 {[%clk 0:00:03.5]} 112... Kc6 {[%clk 0:00:22.7]} 113. Bb3 {[%clk
0:00:03]} 113... Kc5 {[%clk 0:00:23.6]} 114. Ke4 {[%clk 0:00:03]} 114... Kb4
{[%clk 0:00:23.8]} 115. Be6 {[%clk 0:00:02.8]} 115... Kc5 {[%clk 0:00:24.7]}
116. Ke5 {[%clk 0:00:03.1]} 116... Kb4 {[%clk 0:00:24.9]} 117. Kd4 {[%clk
0:00:04]} 1/2-1/2

[Event "*** SCC Grand Prix: Titled Tuesday Blitz"]
[Site "Chess.com"]
[Date "2020.09.08"]
[Round "7"]
[White "Gorin_Leonid"]
[Black "kot60"]
[Result "1-0"]
[WhiteElo "2626"]
[BlackElo "2417"]
[TimeControl "180+1"]
[EndTime "11:14:53 PDT"]
[Termination "Gorin_Leonid won by resignation"]

1. e4 {[%clk 0:03:00.9]} 1... e5 {[%clk 0:02:25.4]} 2. Nf3 {[%clk 0:02:59.9]}
2... Nc6 {[%clk 0:02:25.4]} 3. Bb5 {[%clk 0:02:59.6]} 3... a6 {[%clk 0:02:25.5]}
4. Bxc6 {[%clk 0:02:59.6]} 4... dxc6 {[%clk 0:02:25.6]} 5. O-O {[%clk
0:03:00.2]} 5... f6 {[%clk 0:02:26]} 6. d4 {[%clk 0:02:59.4]} 6... exd4 {[%clk
0:02:26.9]} 7. Nxd4 {[%clk 0:02:59.5]} 7... Bd6 {[%clk 0:02:26.9]} 8. Qh5+
{[%clk 0:02:58.4]} 8... g6 {[%clk 0:02:26.6]} 9. Qf3 {[%clk 0:02:58.8]} 9... Qe7
{[%clk 0:02:27]} 10. Bf4 {[%clk 0:02:58]} 10... Be5 {[%clk 0:02:26]} 11. Rd1
{[%clk 0:02:51.5]} 11... h5 {[%clk 0:02:23.9]} 12. Qe3 {[%clk 0:02:41.7]} 12...
Bd7 {[%clk 0:02:17.8]} 13. Bxe5 {[%clk 0:02:29.4]} 13... fxe5 {[%clk 0:02:16]}
14. Nf3 {[%clk 0:02:27.6]} 14... Bg4 {[%clk 0:02:10.4]} 15. Nbd2 {[%clk
0:02:18.7]} 15... Nf6 {[%clk 0:02:06.8]} 16. h3 {[%clk 0:02:14.8]} 16... Bxf3
{[%clk 0:02:00.9]} 17. Nxf3 {[%clk 0:02:14.6]} 17... O-O {[%clk 0:02:00.6]} 18.
Qb3+ {[%clk 0:02:11.8]} 18... Kg7 {[%clk 0:01:58.4]} 19. Qxb7 {[%clk 0:02:11.3]}
19... Rab8 {[%clk 0:01:57.2]} 20. Qxa6 {[%clk 0:02:03.7]} 20... Rxb2 {[%clk
0:01:58.1]} 21. Qxc6 {[%clk 0:02:02.9]} 21... Rfb8 {[%clk 0:01:50.8]} 22. a4
{[%clk 0:01:59.3]} 22... R8b4 {[%clk 0:01:47.7]} 23. a5 {[%clk 0:01:55.8]} 23...
Nxe4 {[%clk 0:01:44.5]} 24. Rd7 {[%clk 0:01:53.9]} 1-0

[Event "*** SCC Grand Prix: Titled Tuesday Blitz"]
[Site "Chess.com"]
[Date "2020.09.08"]
[Round "7"]
[White "gagtemp"]
[Black "MikeSailer"]
[Result "0-1"]
[WhiteElo "1950"]
[BlackElo "2109"]
[TimeControl "180+1"]
[EndTime "11:14:54 PDT"]
[Termination "MikeSailer won by resignation"]

1. e4 {[%clk 0:03:00.9]} 1... d5 {[%clk 0:03:00.3]} 2. exd5 {[%clk 0:03:00.1]}
2... Qxd5 {[%clk 0:03:00.4]} 3. d4 {[%clk 0:02:59.5]} 3... Nc6 {[%clk
0:02:59.1]} 4. Nf3 {[%clk 0:02:58.5]} 4... Bg4 {[%clk 0:02:59.5]} 5. Be2 {[%clk
0:02:56.5]} 5... Nf6 {[%clk 0:02:58.7]} 6. Be3 {[%clk 0:02:56.3]} 6... O-O-O
{[%clk 0:02:58.7]} 7. Nbd2 {[%clk 0:02:55.7]} 7... e5 {[%clk 0:02:55.2]} 8. dxe5
{[%clk 0:02:52.3]} 8... Nxe5 {[%clk 0:02:43.2]} 9. O-O {[%clk 0:02:38]} 9... h5
{[%clk 0:02:32.4]} 10. Nxe5 {[%clk 0:02:34.5]} 10... Qxe5 {[%clk 0:02:28.5]} 11.
Qe1 {[%clk 0:02:19.1]} 11... Bd6 {[%clk 0:02:06.2]} 12. g3 {[%clk 0:02:11]}
12... Bxe2 {[%clk 0:01:55.4]} 13. Qxe2 {[%clk 0:02:09.3]} 13... h4 {[%clk
0:01:45.3]} 14. Nf3 {[%clk 0:02:05.6]} 14... Qh5 {[%clk 0:01:37.7]} 15. Nxh4
{[%clk 0:01:49.2]} 15... Qxe2 {[%clk 0:01:36.1]} 0-1

[Event "*** SCC Grand Prix: Titled Tuesday Blitz"]
[Site "Chess.com"]
[Date "2020.09.08"]
[Round "7"]
[White "Cambek64"]
[Black "aljado"]
[Result "1-0"]
[WhiteElo "2271"]
[BlackElo "2083"]
[TimeControl "180+1"]
[EndTime "11:15:09 PDT"]
[Termination "Cambek64 won by resignation"]

1. e4 {[%clk 0:03:00.9]} 1... c5 {[%clk 0:02:58.8]} 2. Nc3 {[%clk 0:02:57.8]}
2... e6 {[%clk 0:02:58.8]} 3. d3 {[%clk 0:02:58]} 3... d5 {[%clk 0:02:58.1]} 4.
f4 {[%clk 0:02:57.7]} 4... Nc6 {[%clk 0:02:55.7]} 5. Nf3 {[%clk 0:02:58]} 5...
Nf6 {[%clk 0:02:48.3]} 6. Be2 {[%clk 0:02:57.1]} 6... dxe4 {[%clk 0:02:43.2]} 7.
dxe4 {[%clk 0:02:55.4]} 7... Qxd1+ {[%clk 0:02:42.6]} 8. Bxd1 {[%clk 0:02:54.3]}
8... Nd4 {[%clk 0:02:40.3]} 9. e5 {[%clk 0:02:52.7]} 9... Nd7 {[%clk 0:02:27.2]}
10. Nxd4 {[%clk 0:02:48.9]} 10... cxd4 {[%clk 0:02:26.5]} 11. Nb5 {[%clk
0:02:48.8]} 11... Kd8 {[%clk 0:02:23.9]} 12. Nxd4 {[%clk 0:02:46.4]} 12... Bc5
{[%clk 0:02:17.8]} 13. Be3 {[%clk 0:02:44.2]} 13... g5 {[%clk 0:02:03.9]} 14. g3
{[%clk 0:02:41.1]} 14... gxf4 {[%clk 0:02:02.4]} 15. gxf4 {[%clk 0:02:40.4]}
15... Rg8 {[%clk 0:02:02.9]} 16. Bf3 {[%clk 0:02:39.4]} 16... Rb8 {[%clk
0:01:59.8]} 17. Kf2 {[%clk 0:02:36.8]} 17... Ke7 {[%clk 0:01:58]} 18. Rad1
{[%clk 0:02:29.1]} 18... Bb6 {[%clk 0:01:44.7]} 19. c4 {[%clk 0:02:15.9]} 19...
Nc5 {[%clk 0:01:43.8]} 20. b4 {[%clk 0:02:14.2]} 20... Na4 {[%clk 0:01:39.9]}
21. c5 {[%clk 0:02:13.6]} 21... Bc7 {[%clk 0:01:38.4]} 22. Nb5 {[%clk
0:02:13.1]} 22... Bd8 {[%clk 0:01:34.3]} 23. Rd2 {[%clk 0:02:06]} 23... b6
{[%clk 0:01:32.6]} 24. Nxa7 {[%clk 0:02:03.3]} 24... bxc5 {[%clk 0:01:31.4]} 25.
Nc6+ {[%clk 0:02:02.7]} 1-0

[Event "*** SCC Grand Prix: Titled Tuesday Blitz"]
[Site "Chess.com"]
[Date "2020.09.08"]
[Round "7"]
[White "AliKa2810"]
[Black "Xeniya2005"]
[Result "1-0"]
[WhiteElo "2569"]
[BlackElo "2398"]
[TimeControl "180+1"]
[EndTime "11:15:22 PDT"]
[Termination "AliKa2810 won by resignation"]

1. d4 {[%clk 0:03:00.9]} 1... Nf6 {[%clk 0:02:59.3]} 2. c4 {[%clk 0:03:00.7]}
2... b6 {[%clk 0:02:58.3]} 3. f3 {[%clk 0:03:00.2]} 3... Nc6 {[%clk 0:02:54.5]}
4. Nc3 {[%clk 0:02:59.4]} 4... Bb7 {[%clk 0:02:50.6]} 5. d5 {[%clk 0:02:55.5]}
5... Ne5 {[%clk 0:02:47.8]} 6. e4 {[%clk 0:02:56]} 6... d6 {[%clk 0:02:46.6]} 7.
f4 {[%clk 0:02:52.1]} 7... Ned7 {[%clk 0:02:44.7]} 8. Nf3 {[%clk 0:02:52.3]}
8... e6 {[%clk 0:02:39.8]} 9. Be2 {[%clk 0:02:48.1]} 9... exd5 {[%clk
0:02:38.6]} 10. cxd5 {[%clk 0:02:32.5]} 10... Nc5 {[%clk 0:02:34.9]} 11. Bb5+
{[%clk 0:02:28.7]} 11... Nfd7 {[%clk 0:02:19.6]} 12. O-O {[%clk 0:02:15.4]}
12... a6 {[%clk 0:02:17]} 13. Bc6 {[%clk 0:02:15.5]} 13... Bxc6 {[%clk
0:02:04.9]} 14. dxc6 {[%clk 0:02:16.4]} 14... Nb8 {[%clk 0:02:02.3]} 15. b4
{[%clk 0:02:13.9]} 15... Ne6 {[%clk 0:01:52.2]} 16. f5 {[%clk 0:02:13.5]} 16...
Nxc6 {[%clk 0:01:47.1]} 17. fxe6 {[%clk 0:02:12.9]} 17... f6 {[%clk 0:01:45.5]}
18. Nd5 {[%clk 0:02:07.7]} 18... Na7 {[%clk 0:01:27.9]} 19. Be3 {[%clk
0:02:01.6]} 19... Be7 {[%clk 0:01:16.7]} 20. Rc1 {[%clk 0:02:00.6]} 20... Rc8
{[%clk 0:01:14.4]} 21. Qa4+ {[%clk 0:01:57]} 1-0

[Event "*** SCC Grand Prix: Titled Tuesday Blitz"]
[Site "Chess.com"]
[Date "2020.09.08"]
[Round "7"]
[White "HouseOfDurin"]
[Black "CalinGheorghiu"]
[Result "1-0"]
[WhiteElo "2139"]
[BlackElo "2329"]
[TimeControl "180+1"]
[EndTime "11:15:37 PDT"]
[Termination "HouseOfDurin won by resignation"]

1. d4 {[%clk 0:03:00.9]} 1... Nf6 {[%clk 0:02:58.8]} 2. Bg5 {[%clk 0:03:01.3]}
2... e6 {[%clk 0:02:56.4]} 3. e4 {[%clk 0:03:00.5]} 3... h6 {[%clk 0:02:56.3]}
4. Bxf6 {[%clk 0:03:00.4]} 4... Qxf6 {[%clk 0:02:57.2]} 5. e5 {[%clk 0:03:00.7]}
5... Qd8 {[%clk 0:02:56.8]} 6. f4 {[%clk 0:03:00.7]} 6... d6 {[%clk 0:02:56.4]}
7. Nf3 {[%clk 0:03:00.8]} 7... b6 {[%clk 0:02:44.8]} 8. Bb5+ {[%clk 0:02:53.9]}
8... c6 {[%clk 0:02:43.3]} 9. Bd3 {[%clk 0:02:46]} 9... Bb7 {[%clk 0:02:41.3]}
10. O-O {[%clk 0:02:44.2]} 10... Nd7 {[%clk 0:02:33.9]} 11. f5 {[%clk 0:02:43]}
11... exf5 {[%clk 0:02:27.5]} 12. Bxf5 {[%clk 0:02:41.2]} 12... dxe5 {[%clk
0:02:26.7]} 13. Bxd7+ {[%clk 0:02:32.2]} 13... Qxd7 {[%clk 0:02:26.6]} 14. Nxe5
{[%clk 0:02:32.7]} 14... Qd5 {[%clk 0:02:23.1]} 15. Nxf7 {[%clk 0:02:24.5]}
15... Rg8 {[%clk 0:02:18.5]} 16. Nc3 {[%clk 0:02:19]} 16... Qd7 {[%clk
0:02:09.9]} 17. Ne5 {[%clk 0:01:59.1]} 17... Qe6 {[%clk 0:02:00.9]} 18. Qh5+
{[%clk 0:01:44.3]} 18... Kd8 {[%clk 0:02:00.3]} 19. Rae1 {[%clk 0:01:38.2]}
19... Kc7 {[%clk 0:01:51.5]} 20. Rf7+ {[%clk 0:01:37.1]} 20... Kc8 {[%clk
0:01:49.1]} 21. Nf3 {[%clk 0:01:28.2]} 1-0

[Event "*** SCC Grand Prix: Titled Tuesday Blitz"]
[Site "Chess.com"]
[Date "2020.09.08"]
[Round "7"]
[White "Andrii_Prydun"]
[Black "SophieNikoladze"]
[Result "1-0"]
[WhiteElo "2408"]
[BlackElo "2248"]
[TimeControl "180+1"]
[EndTime "11:15:46 PDT"]
[Termination "Andrii_Prydun won by resignation"]

1. d4 {[%clk 0:03:00.9]} 1... b5 {[%clk 0:02:58.4]} 2. a4 {[%clk 0:02:59.6]}
2... b4 {[%clk 0:02:57.2]} 3. c3 {[%clk 0:02:59.2]} 3... e6 {[%clk 0:02:55.7]}
4. e4 {[%clk 0:02:58.9]} 4... c5 {[%clk 0:02:53.6]} 5. Nf3 {[%clk 0:02:58.1]}
5... Bb7 {[%clk 0:02:50.9]} 6. d5 {[%clk 0:02:58.4]} 6... Nf6 {[%clk 0:02:47.9]}
7. Bc4 {[%clk 0:02:58.4]} 7... exd5 {[%clk 0:02:45.8]} 8. exd5 {[%clk 0:02:58]}
8... Bd6 {[%clk 0:02:46]} 9. Bg5 {[%clk 0:02:56.6]} 9... O-O {[%clk 0:02:45.5]}
10. O-O {[%clk 0:02:56.1]} 10... h6 {[%clk 0:02:45.8]} 11. Bh4 {[%clk
0:02:55.9]} 11... g5 {[%clk 0:02:37.1]} 12. Nxg5 {[%clk 0:02:54.1]} 12... hxg5
{[%clk 0:02:34.7]} 13. Bxg5 {[%clk 0:02:54.6]} 13... Kg7 {[%clk 0:02:29.8]} 14.
Nd2 {[%clk 0:02:53.7]} 14... Rh8 {[%clk 0:02:04.5]} 15. h3 {[%clk 0:02:53]}
15... Rh5 {[%clk 0:02:01.2]} 16. Qxh5 {[%clk 0:02:47.1]} 16... Nxh5 {[%clk
0:01:48.2]} 17. Bxd8 {[%clk 0:02:47]} 17... Na6 {[%clk 0:01:45.8]} 18. Ne4
{[%clk 0:02:46.8]} 18... Be5 {[%clk 0:01:43.4]} 19. Bg5 {[%clk 0:02:45.2]} 19...
f5 {[%clk 0:01:42.3]} 20. Ng3 {[%clk 0:02:34.4]} 20... Nxg3 {[%clk 0:01:38.3]}
21. fxg3 {[%clk 0:02:35.3]} 21... bxc3 {[%clk 0:01:38.5]} 22. bxc3 {[%clk
0:02:33.9]} 22... Bxc3 {[%clk 0:01:38.3]} 23. Rac1 {[%clk 0:02:31.2]} 23... Bd4+
{[%clk 0:01:37.4]} 24. Kh2 {[%clk 0:02:31.7]} 24... Rf8 {[%clk 0:01:33.4]} 25.
g4 {[%clk 0:02:32]} 25... Kg6 {[%clk 0:01:06]} 26. Be7 {[%clk 0:02:30.4]} 26...
Re8 {[%clk 0:00:35.6]} 27. gxf5+ {[%clk 0:02:29]} 27... Kf7 {[%clk 0:00:35.6]}
28. d6+ {[%clk 0:02:28.4]} 28... Kg7 {[%clk 0:00:34.4]} 29. f6+ {[%clk
0:02:28.8]} 1-0

[Event "*** SCC Grand Prix: Titled Tuesday Blitz"]
[Site "Chess.com"]
[Date "2020.09.08"]
[Round "7"]
[White "pavlitas17"]
[Black "parnali1611"]
[Result "1-0"]
[WhiteElo "2371"]
[BlackElo "2167"]
[TimeControl "180+1"]
[EndTime "11:15:51 PDT"]
[Termination "pavlitas17 won by resignation"]

1. d4 {[%clk 0:03:00.9]} 1... d5 {[%clk 0:02:54.7]} 2. c4 {[%clk 0:02:59.4]}
2... e6 {[%clk 0:02:37.9]} 3. Nc3 {[%clk 0:02:58.6]} 3... Nf6 {[%clk 0:02:34.1]}
4. Nf3 {[%clk 0:02:57.8]} 4... Bb4 {[%clk 0:02:32.7]} 5. Qa4+ {[%clk 0:02:56.8]}
5... Nc6 {[%clk 0:02:32.1]} 6. Bd2 {[%clk 0:02:57.1]} 6... a5 {[%clk 0:02:30.7]}
7. e3 {[%clk 0:02:56.5]} 7... O-O {[%clk 0:02:30.2]} 8. a3 {[%clk 0:02:56.5]}
8... Bxc3 {[%clk 0:02:28.1]} 9. Bxc3 {[%clk 0:02:55.6]} 9... Bd7 {[%clk
0:02:28.7]} 10. Qc2 {[%clk 0:02:54.4]} 10... Ne4 {[%clk 0:02:29]} 11. Bd3 {[%clk
0:02:51.6]} 11... f5 {[%clk 0:02:27]} 12. O-O {[%clk 0:02:49.8]} 12... a4 {[%clk
0:02:26.2]} 13. Ne5 {[%clk 0:02:45.2]} 13... Nxe5 {[%clk 0:02:23.6]} 14. dxe5
{[%clk 0:02:45]} 14... c6 {[%clk 0:02:22.5]} 15. f3 {[%clk 0:02:45]} 15... Nxc3
{[%clk 0:02:20.9]} 16. Qxc3 {[%clk 0:02:44.6]} 16... g5 {[%clk 0:02:18.8]} 17.
e4 {[%clk 0:02:43.6]} 17... dxe4 {[%clk 0:02:03.7]} 18. fxe4 {[%clk 0:02:42.9]}
18... f4 {[%clk 0:02:04.3]} 19. Be2 {[%clk 0:02:43.4]} 19... Be8 {[%clk
0:02:01.4]} 20. Rad1 {[%clk 0:02:43.7]} 20... Qe7 {[%clk 0:02:00.3]} 21. Rd6
{[%clk 0:02:43.6]} 21... h5 {[%clk 0:01:58]} 22. c5 {[%clk 0:02:42.5]} 22... Kg7
{[%clk 0:01:55.3]} 23. Bc4 {[%clk 0:02:42.2]} 23... Bf7 {[%clk 0:01:53.1]} 24.
Rfd1 {[%clk 0:02:41.2]} 24... Rad8 {[%clk 0:01:47.5]} 25. Qd4 {[%clk 0:02:41]}
25... Ra8 {[%clk 0:01:30.9]} 26. Rd7 {[%clk 0:02:40.2]} 26... Qe8 {[%clk
0:01:31.1]} 27. Qd6 {[%clk 0:02:40.2]} 27... g4 {[%clk 0:01:29.7]} 28. Qc7
{[%clk 0:02:39.2]} 28... Rc8 {[%clk 0:01:25.2]} 29. Qxb7 {[%clk 0:02:33.8]}
29... Rb8 {[%clk 0:01:25.3]} 30. Qc7 {[%clk 0:02:25.8]} 30... Rxb2 {[%clk
0:01:25.2]} 31. Re7 {[%clk 0:02:17.9]} 31... Qa8 {[%clk 0:01:21.4]} 32. Bxe6
{[%clk 0:02:14.1]} 32... Rb7 {[%clk 0:01:20.5]} 33. Qd6 {[%clk 0:02:10.2]} 33...
Rxe7 {[%clk 0:01:14.7]} 34. Qxe7 {[%clk 0:02:10]} 34... Qa5 {[%clk 0:01:12.5]}
35. Qg5+ {[%clk 0:02:07.2]} 35... Kh7 {[%clk 0:01:10.8]} 36. Bf5+ {[%clk
0:02:05.7]} 36... Kh8 {[%clk 0:01:10.9]} 37. Qh6+ {[%clk 0:02:05.6]} 1-0